fUSD/lending_fUSD_20250423
["ID","MTS","AMOUNT","RATE_DAILY","PERIOD"]
[358726598,1745403108070,1716.63,0.00043836,30]
[358726599,1745403121537,150.0,0.00036795,117]
[358726600,1745403121634,150.0,0.00033795,117]
[358726601,1745403121733,150.0,0.00034796,117]
[358726603,1745403124626,150.0,0.00042113,30]
[358726604,1745403125480,2288.84,0.00043836,30]
[358726605,1745403126818,290.82910547,0.00042113,30]
[358726606,1745403129815,150.0,0.00042113,30]
[358726607,1745403130479,150.0,0.00042113,30]
[358726608,1745403135336,380.36220323,0.00042113,30]
[358726610,1745403140426,912.26594684,0.00042113,30]
[358726611,1745403141216,190.19210213,0.00042113,30]
[358726612,1745403150451,2288.84,0.00043836,30]
[358726614,1745403175826,2861.05,0.00043836,30]
[358726616,1745403188952,60529.3483353,0.000285,120]
[358726619,1745403203281,264115.64828921,0.000438,30]
[358726624,1745403239173,192.0,0.00043151,90]
[358726626,1745403241756,150.0,0.00041043,117]
[358726627,1745403241845,150.0,0.00037396,117]
[358726636,1745403303323,150.0,0.00042113,30]
[358726637,1745403306141,242.42478297,0.00042113,30]
[358726638,1745403307578,283.57201867,0.00042113,30]
[358726639,1745403310119,150.0,0.00042113,30]
[358726640,1745403313976,292.09104108,0.00042113,30]
[358726643,1745403320749,735.46705531,0.00042113,30]
[358726658,1745403430138,5000.0,0.00043,30]
[358726661,1745403483536,150.0,0.00042113,30]
[358726662,1745403485664,211.92738759,0.00042113,30]
[358726663,1745403487659,236.37553391,0.00042113,30]
[358726664,1745403489309,150.0,0.00042113,30]
[358726665,1745403494029,218.51134454,0.00042113,30]
[358726666,1745403499918,588.09379692,0.00042113,30]
[358726675,1745403575511,5726.95,0.0004327,30]
[358726677,1745403605844,900.0,0.00041817,60]
[358726678,1745403607980,900.0,0.00042365,60]
[358726679,1745403610070,900.0,0.00042913,60]
[358726680,1745403611391,900.0,0.00043461,60]
[358726682,1745403623309,150.99,0.00035568,30]
[358726683,1745403634945,500.0,0.00041968,31]
[358726684,1745403635008,500.0,0.00041968,31]
[358726685,1745403635074,500.0,0.00041968,31]
[358726686,1745403635130,500.0,0.00041968,31]
[358726687,1745403635186,500.0,0.00041968,31]
[358726688,1745403635251,500.0,0.00041968,31]
[358726689,1745403635307,628.39498706,0.00041968,31]
[358726690,1745403635365,500.0,0.00041968,31]
[358726691,1745403635425,187.61739295,0.00041968,31]
[358726692,1745403635487,500.0,0.00041968,31]
[358726693,1745403635559,500.0,0.00041968,31]
[358726694,1745403635636,500.0,0.00041968,31]
[358726695,1745403635694,500.0,0.00041968,31]
[358726696,1745403635751,500.0,0.00041968,31]
[358726697,1745403635807,500.0,0.00041968,31]
[358726698,1745403635866,500.0,0.00041968,31]
[358726699,1745403635923,500.0,0.00041968,31]
[358726700,1745403635978,500.0,0.00041968,31]
[358726701,1745403636040,500.0,0.00041968,31]
[358726702,1745403636094,500.0,0.00041968,31]
[358726703,1745403636171,500.0,0.00041968,31]
[358726704,1745403636232,500.0,0.00041968,31]
[358726705,1745403636291,500.0,0.00041968,31]
[358726706,1745403636352,500.0,0.00041968,31]
[358726707,1745403636415,500.0,0.00041968,31]
[358726708,1745403636472,500.0,0.00041968,31]
[358726709,1745403636538,500.0,0.00041968,31]
[358726710,1745403636621,500.0,0.00041968,31]
[358726711,1745403636700,500.0,0.00041968,31]
[358726712,1745403636759,500.0,0.00041968,31]
[358726713,1745403636820,500.0,0.00041968,31]
[358726715,1745403636897,500.0,0.00041968,31]
[358726717,1745403639212,150.0,0.00027,120]
[358726718,1745403639533,150.0,0.000323,120]
[358726719,1745403639827,258.37992,0.000376,120]
[358726720,1745403650427,499.99999999,0.00041968,31]
[358726722,1745403663613,150.0,0.00042113,30]
[358726726,1745403668131,150.0,0.00042113,30]
[358726727,1745403674229,245.6474992,0.00042113,30]
[358726728,1745403678755,465.24869817,0.00042113,30]
[358726729,1745403683545,100000.0,0.000429,120]
[358726731,1745403710978,800.0,0.00039625,60]
[358726732,1745403712682,800.0,0.00040173,60]
[358726733,1745403715000,800.0,0.00040721,60]
[358726734,1745403716102,800.0,0.00041269,60]
[358726735,1745403717617,800.0,0.00042365,60]
[358726736,1745403719370,800.0,0.00043461,60]
[358726737,1745403720751,500.0,0.00039625,60]
[358726738,1745403722316,500.0,0.00040721,60]
[358726740,1745403723921,500.0,0.00041817,60]
[358726741,1745403725946,500.0,0.00042913,60]
[358726743,1745403739253,657.98,0.00042444,120]
[358726745,1745403753532,500.0,0.00042794,31]
[358726746,1745403753589,180.93277634,0.00042794,31]
[358726747,1745403753654,500.0,0.00042794,31]
[358726748,1745403753714,468.7617393,0.00042794,31]
[358726754,1745403846819,197.03422536,0.00042113,30]
[358726755,1745403848035,1000.0,0.00042529,120]
[358726756,1745403848208,150.0,0.00042113,30]
[358726759,1745403859340,277.83737825,0.00042113,30]
[358726765,1745403908030,99600.0,0.0002,2]
[358726766,1745403908055,100000.0,0.0002,2]
[358726767,1745403908085,643.1117,0.0002,2]
[358726768,1745403908108,2000.0,0.0002,2]
[358726769,1745403908131,2000.0,0.0002,2]
[358726770,1745403908154,2000.0,0.0002,2]
[358726771,1745403908177,2000.0,0.0002,2]
[358726772,1745403908204,7300.0,0.0002,2]
[358726773,1745403908228,2000.0,0.0002,2]
[358726774,1745403908252,2000.0,0.0002,2]
[358726777,1745403933136,150.5,0.0004109,120]
[358726778,1745403933607,150.5,0.0004108,120]
[358726779,1745403934586,266.67,0.0004107,120]
[358726782,1745403943277,1322035.51085481,0.00043836,30]
[358726783,1745403943965,500.0,0.00040721,60]
[358726784,1745403945543,500.0,0.00041817,60]
[358726793,1745403990384,157.042319,0.0004383,120]
[358726795,1745403998857,150.042319,0.0004383,120]
[358726796,1745404005667,156.04,0.0004,30]
[358726797,1745404008265,150.042319,0.0004383,120]
[358726798,1745404019282,150.042319,0.0004383,120]
[358726800,1745404028866,157.042319,0.0004383,120]
[358726801,1745404036166,406.84583001,0.00043836,30]
[358726802,1745404041496,157.042319,0.0004383,120]
[358726803,1745404046614,400.0,0.000192,7]
[358726804,1745404049178,900.0,0.000193,7]
[358726809,1745404051125,1400.0,0.000194,7]
[358726810,1745404052376,150.042319,0.0004383,120]
[358726811,1745404053236,1900.0,0.000195,7]
[358726812,1745404055384,2400.0,0.000196,7]
[358726813,1745404057478,400.0,0.000197,7]
[358726814,1745404059587,400.0,0.000198,7]
[358726815,1745404059714,150.042319,0.0004383,120]
[358726816,1745404061740,400.0,0.000199,7]
[358726817,1745404067099,150.042319,0.0004383,120]
[358726818,1745404073699,157.042319,0.0004383,120]
[358726828,1745404149758,379.9,0.00032904,30]
[358726829,1745404150158,379.9,0.00041619,30]
[358726833,1745404202953,2000.0,0.0002,4]
[358726834,1745404206421,164.24071189,0.00042113,30]
[358726842,1745404232072,-1043.1304077,0.000198,2]
[358726843,1745404232083,-2019.99,0.000198,2]
[358726844,1745404232094,-900.0,0.00019862,2]
[358726845,1745404232104,-18304.0,0.00019863,2]
[358726846,1745404232115,-328.01315005,0.000199,2]
[358726847,1745404232125,-205.72885803,0.000199,2]
[358726848,1745404232135,-5770.85865163,0.000199,2]
[358726849,1745404232146,-500.45737885,0.000199,2]
[358726850,1745404232156,-795.44160178,0.000199,2]
[358726851,1745404232166,-642.27908881,0.000199,2]
[358726852,1745404232176,-819.04479419,0.000199,2]
[358726853,1745404232187,-182.10109225,0.000199,2]
[358726854,1745404232197,-500.0,0.00019973,2]
[358726855,1745404232208,-170.71675578,0.0001999,2]
[358726856,1745404232218,-170.71675578,0.0001999,2]
[358726857,1745404232227,-300.0,0.00019999,2]
[358726858,1745404232237,-500.0,0.00019999,2]
[358726859,1745404232247,-500.0,0.00019999,2]
[358726860,1745404232256,-190.16323318,0.00019999,2]
[358726861,1745404232266,-40524.90103599,0.0002,2]
[358726862,1745404232279,-9035.17668,0.0002,2]
[358726863,1745404232312,-1598.89999999,0.0002,2]
[358726919,1745404238644,-435.68171784,0.0002,2]
[358726982,1745404239231,5000.0,0.00043,30]
[358727137,1745404240750,-374.13816193,0.0002,2]
[358727400,1745404243279,-5340.61894407,0.0002,2]
[358727403,1745404243298,-692.75908252,0.0002,2]
[358728396,1745404253511,1500.0,0.00032877,120]
[358730334,1745404275748,3802.58053551,0.00032265,30]
[358730929,1745404383861,217.98390656,0.00042113,30]
[358730930,1745404386487,152.73026843,0.00042113,30]
[358730931,1745404388072,196.89329443,0.00042113,30]
[358730932,1745404389801,150.0,0.00042113,30]
[358730933,1745404400500,443.97563613,0.00042113,30]
[358730934,1745404425467,500.0,0.00032876,120]
[358730935,1745404425710,500.0,0.00032876,120]
[358730936,1745404425953,500.0,0.00032876,120]
[358730937,1745404426207,500.0,0.00032876,120]
[358730938,1745404426435,500.0,0.00032876,120]
[358730939,1745404426792,500.0,0.00032876,120]
[358730940,1745404426993,500.0,0.00032876,120]
[358730941,1745404427212,500.0,0.00032876,120]
[358730942,1745404427583,500.0,0.00032876,120]
[358730943,1745404427869,544.37990978,0.00032876,120]
[358730944,1745404437151,-180.571147,0.000198,2]
[358730945,1745404437175,-1819.428853,0.000199,2]
[358730946,1745404445170,-2000.0,0.000199,2]
[358730949,1745404453648,-2000.0,0.000199,2]
[358730950,1745404459836,-2000.0,0.000199,2]
[358730951,1745404466606,-2000.0,0.000199,2]
[358730952,1745404473285,-2000.0,0.000199,2]
[358730953,1745404479321,-2000.0,0.000199,2]
[358730961,1745404503196,1003213.0,0.00043,60]
[358730962,1745404504047,2931.07846003,0.00043836,30]
[358730967,1745404534195,155.11,0.0004109,120]
[358730975,1745404567480,164.12323689,0.00042113,30]
[358730976,1745404568913,150.0,0.00042113,30]
[358730978,1745404579546,171.29487995,0.00042113,30]
[358730985,1745404709216,21282.476,0.00043185,120]
[358730986,1745404709264,1149.818,0.00038223,51]
[358730987,1745404709310,21282.476,0.00043185,120]
[358730988,1745404709355,21282.476,0.00043185,120]
[358730989,1745404709402,21282.476,0.00043185,120]
[358730990,1745404709453,21282.476,0.00043185,120]
[358730991,1745404710116,-900.0,0.00019899,2]
[358730992,1745404710138,-100.0,0.000199,2]
[358730994,1745404771331,151.0,0.000438,30]
[358730995,1745404781981,151.0,0.000438,30]
[358730996,1745404844137,7815.0,0.00043,120]
[358730997,1745404870379,1500.0,0.000438,120]
[358730998,1745404876685,495.797709,0.00043835,30]
[358731000,1745404914934,150.0,0.00041095,120]
[358731001,1745404915167,150.0,0.00042465,120]
[358731002,1745404915493,150.0,0.00043835,120]
[358731003,1745404922823,150.0,0.00042113,30]
[358731004,1745404926692,188.46063961,0.00042113,30]
[358731005,1745404928313,150.0,0.00042113,30]
[358731007,1745404933725,300.21362774,0.00042113,30]
[358731008,1745404936988,280.13639328,0.00043835,30]
[358731009,1745404938953,275.3045419,0.00042113,30]
[358731012,1745404976529,3000.0,0.000438,120]
[358731015,1745405026787,5152.838,0.000438,120]
[358731016,1745405039735,187.0,0.00043151,90]
[358731018,1745405056559,500.0,0.0004383,30]
[358731019,1745405070585,500.0,0.0004383,30]
[358731020,1745405081532,213.10817793,0.000438,30]
[358731023,1745405097634,274.0,0.0004383,30]
[358731026,1745405106773,157.0940762,0.00042113,30]
[358731029,1745405136220,1000.0,0.00043835,30]
[358731033,1745405193656,429.0,0.0004325,30]
[358731037,1745405276565,21442.86272993,0.00043835,30]
[358731041,1745405322405,475.19551555,0.00043836,120]
[358731055,1745405386215,7000.0,0.00043835,30]
[358731063,1745405401973,342.6,0.00032904,30]
[358731064,1745405402189,342.6,0.00041619,30]
[358731067,1745405404680,1509.83422558,0.0004383,120]
[358731079,1745405432220,-150.0,0.00019863,2]
[358731080,1745405432230,-156.20860496,0.0001988,2]
[358731081,1745405432240,-900.0,0.00019899,2]
[358731082,1745405432249,-300.0,0.00019899,2]
[358731083,1745405432260,-200.60431975,0.00019899,2]
[358731084,1745405432270,-14173.0446,0.000199,2]
[358731085,1745405432280,-1122.8083,0.000199,2]
[358731086,1745405432291,-20371.43766073,0.000199,2]
[358731087,1745405432303,-709.95288138,0.000199,2]
[358731638,1745405438411,-17832.58145789,0.000199,2]
[358731640,1745405438421,-10710.0208,0.000199,2]
[358731642,1745405438431,-811.7568,0.000199,2]
[358731644,1745405438441,-1804.068,0.000199,2]
[358731645,1745405438450,-1271.0994621,0.000199,2]
[358731646,1745405438461,-265.9975,0.000199,2]
[358731647,1745405438470,-308.2786,0.000199,2]
[358731648,1745405438480,-633.05384484,0.000199,2]
[358731649,1745405438490,-1365.07465697,0.000199,2]
[358731650,1745405438500,-500.0,0.00019973,2]
[358731651,1745405438510,-500.0,0.00019973,2]
[358731652,1745405438520,-500.0,0.00019973,2]
[358731653,1745405438530,-509.79104949,0.00019973,2]
[358731654,1745405438539,-500.0,0.00019973,2]
[358731655,1745405438548,-280.88233886,0.0001999,2]
[358731656,1745405438558,-300.0,0.00019999,2]
[358731657,1745405438568,-500.0,0.00019999,2]
[358731658,1745405438578,-300.0,0.00019999,2]
[358731659,1745405438588,-300.0,0.00019999,2]
[358731660,1745405438597,-500.0,0.00019999,2]
[358731661,1745405438607,-694.50507917,0.00019999,2]
[358731662,1745405438617,-500.0,0.00019999,2]
[358731663,1745405438626,-4019813.51101836,0.0002,2]
[358731664,1745405438639,-2358722.8491447,0.0002,2]
[358731665,1745405438655,-339.71286437,0.0002,2]
[358731666,1745405438674,-724.42531493,0.0002,2]
[358731667,1745405438691,-2021.60204838,0.0002,2]
[358731727,1745405440528,-2000.0,0.0002,2]
[358731730,1745405440541,-4826639.97199304,0.0002,2]
[358732032,1745405443560,-276.79516028,0.0002,2]
[358732039,1745405443614,-934.39,0.0002,2]
[358732319,1745405446456,-1449.98667599,0.0002,2]
[358732330,1745405446559,-4677.55,0.0002,2]
[358732700,1745405588411,1451.845816,7.945e-05,2]
[358732702,1745405624933,2000.0,0.00043836,30]
[358732705,1745405662667,208.91,0.00016712,2]
[358732720,1745405809399,1387.9457441,0.00043836,30]
[358732723,1745405880438,150.0,0.00041095,120]
[358732724,1745405880681,150.0,0.00042465,120]
[358732725,1745405880925,150.0,0.00043835,120]
[358732729,1745405902014,5000.0,0.00043,30]
[358732730,1745405905510,526.38,0.00025911,120]
[358732731,1745405905716,526.38,0.00028503,120]
[358732732,1745405906122,526.38,0.00031094,120]
[358732734,1745405909753,952.117,0.000422,63]
[358732735,1745405916596,45000.0,0.00043,30]
[358732738,1745406073797,1296.85120799,0.000425,90]
[358732746,1745406158169,1000.0,0.00043835,30]
[358732747,1745406187237,3319.0,0.00043836,30]
[358732753,1745406220925,1410.65,0.00018126,2]
[358732754,1745406222104,1079.98114,0.00019404,2]
[358732755,1745406227642,1000.0,0.00043835,30]
[358732756,1745406238551,160.0,0.00043151,90]
[358732765,1745406306503,4992.77914373,0.00043836,30]
[358732766,1745406379957,499.14,0.00043835,30]
[358732768,1745406476816,197.97188639,0.00043835,30]
[358732771,1745406512992,285.5,0.00032904,30]
[358732772,1745406513196,285.5,0.00041619,30]
[358732776,1745406558521,-952.117,0.000196,2]
[358732777,1745406558544,-190.06024417,0.000196,2]
[358732778,1745406558565,-366.09805812,0.000197,2]
[358732779,1745406558586,-585.13,0.0001972,2]
[358732780,1745406558608,-7906.59469771,0.00019789,2]
[358732781,1745406563012,-5678.03530229,0.00019789,2]
[358732782,1745406563034,-551.81,0.00019811,2]
[358732783,1745406563056,-595.19,0.00019861,2]
[358732784,1745406563077,-206.73,0.00019883,2]
[358732785,1745406563099,-900.0,0.00019897,2]
[358732786,1745406563121,-2068.23469771,0.000199,2]
[358732787,1745406563184,-4156.33730229,0.000199,2]
[358732788,1745406563207,-324.9675,0.000199,2]
[358732789,1745406563230,-528.16632281,0.000199,2]
[358732790,1745406563252,-4990.5288749,0.000199,2]
[358732791,1745406563985,-10000.0,0.000199,2]
[358732792,1745406564171,-10000.0,0.000199,2]
[358732793,1745406564533,-10000.0,0.000199,2]
[358732794,1745406565070,-9982.32170299,0.000199,2]
[358732795,1745406565092,-17.67829701,0.000199,2]
[358732796,1745406565640,-892.37147429,0.000199,2]
[358732797,1745406565663,-703.21,0.00019969,2]
[358732798,1745406565686,-500.0,0.00019973,2]
[358732799,1745406565708,-500.0,0.00019973,2]
[358732800,1745406565731,-500.0,0.00019973,2]
[358732801,1745406565753,-499.4958612,0.00019973,2]
[358732802,1745406565775,-500.0,0.00019973,2]
[358732803,1745406565804,-159.68770128,0.00019973,2]
[358732804,1745406565829,-500.0,0.00019973,2]
[358732805,1745406565853,-152.14650202,0.00019973,2]
[358732806,1745406565876,-440.83,0.00019979,2]
[358732807,1745406565899,-4142.45798575,0.0001999,2]
[358732808,1745406565923,-280.88233886,0.0001999,2]
[358732809,1745406565946,-228.9181366,0.00019999,2]
[358732810,1745406566155,-71.0818634,0.00019999,2]
[358732811,1745406566180,-500.0,0.00019999,2]
[358732812,1745406566202,-300.0,0.00019999,2]
[358732813,1745406566227,-500.0,0.00019999,2]
[358732814,1745406566251,-500.0,0.00019999,2]
[358732815,1745406566273,-300.0,0.00019999,2]
[358732816,1745406566296,-234.35508582,0.00019999,2]
[358732817,1745406566319,-694.50507917,0.00019999,2]
[358732818,1745406566342,-6900.05797161,0.00019999,2]
[358732819,1745406566734,-1389.85202839,0.00019999,2]
[358732820,1745406566757,-189.17288752,0.00019999,2]
[358732821,1745406566779,-262.56535594,0.00019999,2]
[358732822,1745406566802,-196.40921824,0.00019999,2]
[358732823,1745406566826,-7962.00050991,0.0002,2]
[358732824,1745406567038,-10000.0,0.0002,2]
[358732825,1745406567577,-10000.0,0.0002,2]
[358732826,1745406568171,-10000.0,0.0002,2]
[358732827,1745406568790,-10000.0,0.0002,2]
[358732828,1745406569173,-10000.0,0.0002,2]
[358732829,1745406569662,-10000.0,0.0002,2]
[358732830,1745406570197,-10000.0,0.0002,2]
[358732831,1745406570665,-10000.0,0.0002,2]
[358732832,1745406571273,-10000.0,0.0002,2]
[358732833,1745406572111,-10000.0,0.0002,2]
[358732834,1745406572867,-10000.0,0.0002,2]
[358732835,1745406574061,-10000.0,0.0002,2]
[358732836,1745406597276,-2548.0,0.000199,2]
[358732837,1745406622515,3063.82135856,0.00043836,30]
[358732839,1745406631816,-669.92949261,0.000199,2]
[358732843,1745406631846,-3693.33780679,0.000199,2]
[358732846,1745406631870,-1933.73859676,0.000199,2]
[358732934,1745406637462,-773.09185653,0.000199,2]
[358732935,1745406637473,-232.9064601,0.00019973,2]
[358732936,1745406637515,-269.5980583,0.00019973,2]
[358732937,1745406637526,-666.6884953,0.00019999,2]
[358732938,1745406637536,-500.0,0.00019999,2]
[358732939,1745406637548,-900.0,0.00019999,2]
[358732940,1745406637558,-103305.59819994,0.0002,2]
[358732941,1745406637571,-7475.3396246,0.0002,2]
[358732942,1745406637582,-935.59,0.0002,2]
[358732943,1745406637594,-6132.246,0.0002,2]
[358732944,1745406637622,-4023188.89843639,0.0002,2]
[358732945,1745406637635,-1038820.92598505,0.0002,2]
[358732946,1745406637645,-7209.26424531,0.0002,2]
[358732947,1745406637655,-300.99738329,0.0002,2]
[358732948,1745406637665,-1481.43211323,0.0002,2]
[358732949,1745406637675,-50643.85860306,0.0002,2]
[358732950,1745406637684,-23900.0,0.00020038,2]
[358732951,1745406637696,-282.47,0.00020147,2]
[358732952,1745406637705,-1000.0,0.00020308,2]
[358732953,1745406637715,-200.0,0.00020323,2]
[358732954,1745406637725,-500.0,0.00020387,7]
[358732955,1745406637740,-1410.65,0.0002039,2]
[358732956,1745406637749,-15369.86,0.00020548,2]
[358732957,1745406637759,-41962.93,0.00020626,2]
[358732958,1745406637769,-200.0,0.00020659,2]
[358732959,1745406637779,-526.38,0.00020729,2]
[358732960,1745406637789,-509.05,0.00020811,2]
[358732961,1745406637800,-250.0,0.00021,2]
[358732962,1745406637811,-500.0,0.00021096,2]
[358732963,1745406637821,-500.0,0.00021195,2]
[358732964,1745406637831,-300.0,0.00021195,2]
[358732966,1745406637840,-37603.0,0.00021196,2]
[358732968,1745406637850,-3038.44,0.00021196,2]
[358732970,1745406637860,-10552.82,0.00021196,2]
[358732972,1745406637870,-200.0,0.00021244,2]
[358732974,1745406637881,-1572.75,0.0002137,2]
[358732976,1745406637890,-4844.49191977,0.000215,3]
[358732979,1745406637900,-1173.7987,0.00021534,2]
[358732981,1745406637911,-250.0,0.00021558,2]
[358732983,1745406637920,-500.0,0.0002157,2]
[358732985,1745406637930,-300.0,0.0002157,2]
[358732987,1745406637940,-500.0,0.0002157,2]
[358732990,1745406637950,-76807.08,0.00021571,2]
[358732993,1745406637960,-500.0,0.00021573,2]
[358732996,1745406637970,-500.0,0.00021573,2]
[358732999,1745406637980,-500.0,0.00021573,2]
[358733001,1745406637991,-499.20891726,0.00021573,2]
[358733006,1745406638002,-501.40751603,0.00021573,2]
[358733009,1745406638012,-500.0,0.00021573,2]
[358733012,1745406638022,-500.0,0.00021573,2]
[358733015,1745406638031,-1720.66,0.00021714,2]
[358733018,1745406638041,-250.0,0.0002178,2]
[358733021,1745406638052,-250.0,0.0002178,2]
[358733023,1745406638062,-4844.49191971,0.00021797,3]
[358733025,1745406638072,-212.86,0.00021827,2]
[358733027,1745406638082,-1260.0,0.00021881,2]
[358733029,1745406638094,-150.0,0.00021889,2]
[358733031,1745406638104,-150.0,0.00021889,2]
[358733033,1745406638113,-181.22,0.00021918,2]
[358733035,1745406638124,-176.94,0.00022015,2]
[358733038,1745406638133,-1410.65,0.00022654,2]
[358733040,1745406638143,-4844.49191971,0.00022693,4]
[358733042,1745406638154,-1000.0,0.00022847,2]
[358733044,1745406638166,-300.0,0.00023,2]
[358733046,1745406638177,-212.86,0.0002304,2]
[358733048,1745406638191,-7246.43,0.00023134,2]
[358733050,1745406638203,-526.38,0.0002332,2]
[358733053,1745406638213,-4844.49191971,0.0002359,4]
[358733055,1745406638223,-503.0,0.00023808,2]
[358733057,1745406638234,-707.54,0.00023836,2]
[358733059,1745406638244,-502.14341741,0.00023873,2]
[358733061,1745406638253,-518.07384473,0.00023873,2]
[358733063,1745406638264,-500.0,0.00023873,2]
[358733065,1745406638275,-1763.0,0.00023941,2]
[358733067,1745406638285,-833.69145673,0.00024,2]
[358733069,1745406638295,-200.0,0.000241,2]
[358733071,1745406638305,-3996.35,0.00024174,2]
[358733073,1745406638315,-19999.99,0.00024174,2]
[358733075,1745406638326,-212.86,0.00024252,2]
[358733077,1745406638336,-250.0,0.00024443,2]
[358733079,1745406638346,-4844.49191971,0.00024486,5]
[358733082,1745406638356,-121614.639065,0.000248,3]
[358733084,1745406638366,-151.0,0.000249,7]
[358733086,1745406638377,-153.485821,0.000249,7]
[358733088,1745406638387,-183.21095633,0.000249,2]
[358733090,1745406638398,-586722.884735,0.000249,3]
[358733092,1745406638407,-1410.65,0.00024917,2]
[358733094,1745406638417,-350.0,0.00025,2]
[358733096,1745406638427,-451.15295249,0.00025,2]
[358733098,1745406638437,-200.0,0.000251,2]
[358733100,1745406638448,-4844.49191971,0.00025383,6]
[358733102,1745406638457,-1000.0,0.00025385,2]
[358733104,1745406638467,-1000.0,0.00025452,2]
[358733106,1745406638477,-1000.0,0.00025452,2]
[358733108,1745406638487,-794.30947494,0.00025452,2]
[358733110,1745406638498,-212.86,0.00025465,2]
[358733112,1745406638507,-200.0,0.000261,2]
[358733114,1745406638517,-1430.0,0.00026194,2]
[358733116,1745406638527,-4844.49191971,0.00026279,6]
[358733118,1745406638538,-1823.03638286,0.000264,2]
[358733121,1745406638549,-212.86,0.00026677,2]
[358733123,1745406638559,-400.0,0.00027,2]
[358733125,1745406638569,-1000.0,0.00027052,2]
[358733127,1745406638579,-503.55173525,0.00027052,2]
[358733129,1745406638588,-999.17900117,0.00027052,2]
[358733131,1745406638598,-509.92508194,0.00027052,2]
[358733133,1745406638608,-1000.0,0.00027052,2]
[358733135,1745406638618,-200.0,0.000271,2]
[358733137,1745406638628,-4844.49191971,0.00027176,7]
[358733140,1745406638648,-1410.65,0.00027181,2]
[358733142,1745406638660,-1940.79,0.00027397,2]
[358733145,1745406638670,-499.26,0.00027397,2]
[358733147,1745406638681,-700.0,0.00027397,2]
[358733149,1745406638690,-500.0,0.00027397,5]
[358733151,1745406638700,-193.8235621,0.000275,2]
[358733153,1745406638710,-595.19,0.00027805,2]
[358733155,1745406638720,-212.86,0.0002789,2]
[358733185,1745406639144,-1000.0,0.00027924,2]
[358733186,1745406639155,-279.63718743,0.00027945,5]
[358733188,1745406639169,-1006.64328016,0.00028,2]
[358733190,1745406639179,-4844.49191971,0.00028072,7]
[358733192,1745406639189,-200.0,0.000281,2]
[358733194,1745406639199,-1940.79,0.00028767,2]
[358733196,1745406639209,-4844.49191971,0.00028969,8]
[358733198,1745406639219,-450.0,0.00029,2]
[358733200,1745406639228,-200.0,0.000291,2]
[358733202,1745406639239,-212.86,0.00029103,2]
[358733204,1745406639249,-685.57527812,0.00029352,5]
[358733206,1745406639258,-1410.65,0.00029445,2]
[358733208,1745406639267,-4844.49191971,0.00029866,8]
[358733210,1745406639277,-200.0,0.000301,2]
[358733212,1745406639288,-1940.79,0.00030137,2]
[358733215,1745406639299,-610.0,0.00030137,2]
[358733217,1745406639308,-212.86,0.00030315,2]